bitfinex/quotes_ETHUSD_20250629
["timestamp","ask_amount","ask_price","bid_price","bid_amount"]
[1751188200058,4.09651386,2441.1,2440.9,6.635]
[1751188200215,5.63761132,2441.0,2440.9,6.635]
[1751188200644,5.63761132,2441.0,2440.8,0.2048]
[1751188200843,4.09651386,2441.1,2440.8,6.8398]
[1751188201042,9.73412518,2441.1,2440.8,6.8398]
[1751188202653,5.1256477,2441.2,2440.8,6.8398]
[1751188202855,5.63761132,2441.1,2440.8,8.51372281]
[1751188203152,5.63761132,2441.1,2440.8,1.87872281]
[1751188203320,5.63761132,2441.1,2440.8,8.51372281]
[1751188205755,4.09620858,2441.3,2440.8,8.51372281]
[1751188205756,5.63761132,2441.3,2440.9,4.09675644]
[1751188206052,5.63761132,2441.3,2441.0,0.2048]
[1751188206248,5.63761132,2441.3,2441.0,4.30146696]
[1751188207251,0.2068,2441.4,2441.0,4.30146696]
[1751188207455,0.2068,2441.4,2441.1,6.634]
[1751188208857,0.2068,2441.4,2441.1,10.73049989]
[1751188209652,0.2068,2441.4,2441.1,6.634]
[1751188209856,4.30281439,2441.4,2441.1,6.634]
[1751188210261,0.2068,2441.4,2441.1,6.634]
[1751188211760,4.30282521,2441.4,2441.1,6.634]
[1751188211939,5.63761132,2441.3,2441.1,6.634]
[1751188217468,0.2068,2441.4,2441.1,10.73047772]
[1751188217670,0.002,2441.4,2441.1,13.04205513]
[1751188219775,0.002,2441.4,2441.2,4.09623175]
[1751188221385,0.002,2441.4,2441.1,13.04199926]
[1751188221571,0.002,2441.4,2441.2,4.09634415]
[1751188221886,0.002,2441.4,2441.2,5.8101992]
[1751188222782,0.002,2441.4,2441.2,6.0149992]
[1751188223403,0.002,2441.4,2441.3,6.633]
[1751188223553,0.002,2441.4,2441.3,10.72917826]
[1751188224058,0.002,2441.4,2441.3,11.54207826]
[1751188224264,0.002,2441.4,2441.3,13.29778601]
[1751188225816,0.002,2441.4,2441.3,13.84778601]
[1751188231220,0.002,2441.4,2441.3,7.21478601]
[1751188231418,0.002,2441.4,2441.3,15.54878601]
[1751188249849,0.002,2441.4,2441.3,25.54878601]
[1751188252869,0.002,2441.4,2441.3,25.54378601]
[1751188253866,0.002,2441.4,2441.3,17.21478601]
[1751188254065,0.002,2441.4,2441.3,24.99378601]
[1751188254268,0.002,2441.4,2441.3,25.54378601]
[1751188254467,0.002,2441.4,2441.3,24.73088601]
[1751188258648,0.002,2441.4,2441.3,12.30570775]
[1751188258857,0.002,2441.4,2441.3,20.63370775]
[1751188259068,0.002,2441.4,2441.3,24.72988601]
[1751188259270,0.002,2441.4,2441.3,18.10288601]
[1751188259468,0.002,2441.4,2441.3,24.72988601]
[1751188266279,0.002,2441.4,2441.3,25.55878601]
[1751188291834,0.002,2441.4,2441.3,17.23078601]
[1751188292033,0.002,2441.4,2441.3,24.72388601]
[1751188292531,0.002,2441.4,2441.3,18.10088601]
[1751188292735,0.002,2441.4,2441.3,24.72388601]
[1751188300244,0.72181598,2441.6,2441.4,4.64594469]
[1751188300415,0.72181598,2441.6,2441.5,6.826]
[1751188305347,0.72181598,2441.6,2441.5,10.92184271]
[1751188308050,6.45236081,2441.8,2441.5,10.92184271]
[1751188309061,6.45236081,2441.8,2441.5,12.61884271]
[1751188316089,6.45236081,2441.8,2441.6,4.09567303]
[1751188316291,6.45236081,2441.8,2441.7,6.62]
[1751188320894,0.002,2441.8,2441.7,10.71550722]
[1751188327398,0.002,2441.8,2441.7,11.89755178]
[1751188327976,0.002,2441.8,2441.7,11.89555178]
[1751188330619,0.002,2441.8,2441.7,12.65495178]
[1751188330930,0.002,2441.8,2441.7,12.85895178]
[1751188338348,0.002,2441.8,2441.7,8.76344456]
[1751188339550,0.002,2441.8,2441.7,12.85895178]
[1751188339747,0.7561,2441.8,2441.7,1.38604456]
[1751188339955,0.7561,2441.8,2441.7,6.82]
[1751188340448,0.002,2441.8,2441.7,6.82]
[1751188343654,0.002,2441.8,2441.7,10.91550722]
[1751188366412,0.002,2441.8,2441.7,11.69890722]
[1751188370221,0.002,2441.8,2441.7,12.24890722]
[1751188370386,0.002,2441.8,2441.7,14.05276177]
[1751188386970,0.00166489,2442.0,2441.9,4.64517179]
[1751188387262,0.00166489,2442.0,2441.9,12.07747179]
[1751188387762,0.00166489,2442.0,2441.9,12.28147179]
[1751188389470,0.00166489,2442.0,2441.9,22.28147179]
[1751188389764,0.00166489,2442.0,2441.9,25.50908554]
[1751188403490,0.00166489,2442.0,2441.9,18.90008554]
[1751188403790,0.00166489,2442.0,2441.9,32.82954635]
[1751188405181,0.00166489,2442.0,2441.9,37.14054635]
[1751188405389,0.00166489,2442.0,2441.9,32.82954635]
[1751188414192,0.00166489,2442.0,2441.9,37.14054635]
[1751188414980,0.00166489,2442.0,2441.9,32.82754635]
[1751188420205,0.00166489,2442.0,2441.9,37.13854635]
[1751188422429,0.00166489,2442.0,2441.9,42.77400716]
[1751188422601,0.00166489,2442.0,2441.9,37.13854635]
[1751188423130,0.00166489,2442.0,2441.9,42.77400716]
[1751188423331,0.00166489,2442.0,2441.9,59.35515616]
[1751188423628,0.00166489,2442.0,2441.9,58.30756616]
[1751188424001,0.002,2442.1,2442.0,46.64220809]
[1751188424197,0.002,2442.1,2442.0,35.02581833]
[1751188424725,0.002,2442.1,2442.0,43.06572078]
[1751188424929,0.002,2442.3,2442.2,14.64466874]
[1751188425132,0.002,2442.3,2442.2,65.13493719]
[1751188425298,0.8075,2443.3,2442.2,65.13493719]
[1751188425299,0.8085,2443.5,2443.4,0.55]
[1751188425502,0.8085,2443.5,2443.4,15.06423654]
[1751188426210,0.8085,2443.5,2443.4,8.46323654]
[1751188426409,0.8085,2443.5,2443.4,13.13565777]
[1751188427319,0.8085,2443.5,2443.4,23.13565777]
[1751188428234,0.001,2443.5,2443.4,23.13565777]
[1751188431909,0.001,2443.5,2443.4,23.13265777]
[1751188435040,0.001,2443.5,2443.4,14.84665777]
[1751188435248,0.7986,2443.5,2443.4,23.13165777]
[1751188438326,0.7986,2443.5,2443.4,8.488]
[1751188438567,1.68255025,2443.5,2443.4,8.488]
[1751188439464,0.7986,2443.5,2443.4,8.488]
[1751188440972,8.83850245,2443.5,2443.4,0.204]
[1751188441131,0.7976,2443.4,2443.3,1.686]
[1751188441439,0.7976,2443.4,2443.3,8.284]
[1751188442658,0.7976,2443.4,2443.2,0.204]
[1751188442958,0.8046,2443.2,2443.1,1.89]
[1751188443163,0.8046,2443.2,2443.1,8.284]
[1751188445766,0.8046,2443.2,2443.1,1.686]
[1751188445975,0.8046,2443.2,2443.1,8.284]
[1751188448470,0.8046,2443.2,2442.9,4.29743345]
[1751188448677,0.8046,2443.2,2443.1,8.284]
[1751188451387,0.8046,2443.2,2443.1,12.37716032]
[1751188453857,0.8046,2443.2,2443.1,12.58116032]
[1751188456899,0.8018,2443.4,2443.3,4.0926649]
[1751188457101,0.8018,2443.4,2443.3,10.6906649]
[1751188457279,0.8018,2443.4,2443.3,10.8946649]
[1751188460738,0.001,2443.5,2443.4,4.09265777]
[1751188461144,0.001,2443.5,2443.3,10.89473031]
[1751188461439,0.001,2443.5,2443.4,4.09265777]
[1751188462348,0.001,2443.5,2443.3,10.89474748]
[1751188462830,0.001,2443.5,2443.4,4.09265777]
[1751188468066,0.001,2443.5,2443.4,6.14140568]
[1751188468216,0.001,2443.5,2443.4,7.15220568]
[1751188474962,0.001,2443.5,2443.4,6.34540568]
[1751188475164,0.001,2443.5,2443.4,14.62640568]
[1751188477762,0.001,2443.5,2443.4,25.43320568]
[1751188503592,0.001,2443.5,2443.4,30.08320568]
[1751188506300,0.001,2443.5,2443.4,25.43320568]
[1751188507679,0.001,2443.5,2443.4,17.15220568]
[1751188507880,0.001,2443.5,2443.4,25.42820568]
[1751188508601,0.001,2443.5,2443.4,17.15220568]
[1751188508807,0.001,2443.5,2443.4,24.07040568]
[1751188509308,0.001,2443.5,2443.4,24.62040568]
[1751188510670,0.001,2443.5,2443.4,16.34540568]
[1751188510885,0.001,2443.5,2443.4,24.62040568]
[1751188511497,0.001,2443.5,2443.4,16.34540568]
[1751188511689,0.001,2443.5,2443.4,24.62040568]
[1751188515724,0.001,2443.5,2443.4,18.02840568]
[1751188515891,0.001,2443.5,2443.4,23.12165777]
[1751188516828,0.001,2443.5,2443.4,14.84665777]
[1751188517023,0.001,2443.5,2443.4,23.12165777]
[1751188517825,0.8048,2443.5,2443.4,14.29665777]
[1751188518030,0.8048,2443.5,2443.4,15.97965777]
[1751188518211,0.8048,2443.5,2443.4,22.57165777]
[1751188521141,0.8048,2443.5,2443.4,14.29665777]
[1751188521445,0.8048,2443.5,2443.4,22.57165777]
[1751188523146,0.8048,2443.5,2443.4,22.57065777]
[1751188523742,0.8048,2443.5,2443.4,14.29665777]
[1751188523948,0.8048,2443.5,2443.4,22.57065777]
[1751188524445,0.8048,2443.5,2443.4,14.29665777]
[1751188524661,0.8048,2443.5,2443.4,15.97865777]
[1751188524944,0.8048,2443.5,2443.4,22.57065777]
[1751188525956,0.8048,2443.5,2443.4,1.886]
[1751188526145,0.8048,2443.5,2443.4,8.274]
[1751188526658,0.8048,2443.5,2443.4,1.682]
[1751188526968,0.8048,2443.5,2443.4,12.36665777]
[1751188527327,0.8048,2443.5,2443.4,8.274]
[1751188527523,0.8048,2443.5,2443.4,1.682]
[1751188527757,0.8048,2443.5,2443.4,8.274]
[1751188527927,0.8048,2443.5,2443.4,12.36665777]
[1751188528130,0.8048,2443.5,2443.4,5.77465777]
[1751188528355,0.8048,2443.5,2443.4,12.36665777]
[1751188529662,0.8048,2443.5,2443.4,8.274]
[1751188529827,0.8048,2443.5,2443.4,12.36665777]
[1751188530658,0.8048,2443.5,2443.4,4.09265777]
[1751188530855,0.8048,2443.5,2443.4,10.68465777]
[1751188532859,0.8048,2443.5,2443.3,0.204]
[1751188533059,1.68937024,2443.5,2443.4,6.592]
[1751188533238,1.68937024,2443.5,2443.3,0.204]
[1751188533439,0.8329,2443.4,2443.3,1.682]
[1751188533653,0.8329,2443.4,2443.3,8.274]
[1751188547980,0.205,2443.5,2443.3,8.274]
[1751188555273,0.205,2443.5,2443.3,12.36680451]
[1751188556104,0.205,2443.5,2443.3,8.274]
[1751188556856,0.205,2443.5,2443.3,9.0646]
[1751188557180,0.001,2443.5,2443.4,4.09265777]
[1751188557389,0.001,2443.5,2443.4,4.84665777]
[1751188564614,0.001,2443.5,2443.4,5.61785777]
[1751188567219,0.001,2443.5,2443.4,23.65439158]
[1751188570518,0.001,2443.5,2443.4,28.30439158]
[1751188570717,0.001,2443.5,2443.4,32.31771582]
[1751188573127,0.001,2443.5,2443.4,24.28118201]
[1751188573360,0.001,2443.5,2443.4,32.31771582]
[1751188578035,0.001,2443.5,2443.4,38.38244182]
[1751188579429,0.001,2443.5,2443.4,29.06491401]
[1751188579666,0.001,2443.5,2443.4,35.48539782]
[1751188583671,0.001,2443.5,2443.4,39.79139782]
[1751188586076,0.001,2443.8,2443.7,15.47415533]
[1751188586274,0.001,2443.8,2443.7,33.46258253]
[1751188586570,0.001,2443.8,2443.7,33.66658253]
[1751188587945,0.001,2443.8,2443.7,33.97038084]
[1751188589702,0.001,2443.8,2443.7,27.38438084]
[1751188589851,0.001,2443.8,2443.7,35.64938084]
[1751188597220,0.001,2443.8,2443.7,35.64838084]
[1751188597569,0.001,2443.8,2443.7,27.38438084]
[1751188597886,0.001,2443.8,2443.7,35.64838084]
[1751188598399,0.001,2443.8,2443.7,35.34458253]
[1751188599500,0.001,2443.8,2443.7,27.08058253]
[1751188599687,0.001,2443.8,2443.7,35.34458253]
[1751188601580,0.001,2443.8,2443.7,35.6578902]
[1751188604012,0.001,2443.8,2443.7,40.3078902]
[1751188610516,0.001,2443.8,2443.7,32.27035639]
[1751188611114,0.001,2443.8,2443.7,31.95704872]
[1751188613723,0.001,2443.8,2443.7,40.30491323]
[1751188615822,0.001,2443.8,2443.7,39.47291323]
[1751188618309,0.001,2443.8,2443.7,49.28691323]
[1751188618712,0.001,2443.8,2443.7,46.87237993]
[1751188620517,0.001,2444.5,2444.4,4.64098347]
[1751188620719,0.001,2444.5,2444.4,22.90198347]
[1751188620929,0.7523,2444.5,2444.4,23.10598347]
[1751188626257,0.7523,2444.5,2444.4,25.82569324]
[1751188635574,0.7523,2444.5,2444.4,19.24269324]
[1751188635781,0.7523,2444.5,2444.4,23.10498347]
[1751188640684,0.001,2444.5,2444.4,23.10498347]
[1751188643482,0.001,2444.5,2444.4,28.7256902]
[1751188643666,0.001,2444.5,2444.4,23.10498347]
[1751188649195,0.8047,2445.1,2444.4,23.10498347]
[1751188649196,0.8047,2445.1,2445.0,4.63997955]
[1751188649403,0.8047,2445.1,2445.0,12.89797955]
[1751188652912,0.8047,2445.1,2445.0,14.33152392]
[1751188654790,0.001,2445.4,2445.3,4.08947777]
[1751188654990,0.001,2445.4,2445.3,10.66947777]
[1751188655190,0.001,2445.4,2445.3,11.21947777]
[1751188655491,0.7923,2445.4,2445.3,11.21947777]
[1751188655911,0.7923,2445.4,2445.3,13.15936782]
[1751188658421,0.001,2445.4,2445.3,13.15936782]
[1751188659090,0.001,2445.4,2445.3,13.36336782]
[1751188659700,0.001,2445.4,2445.3,23.36336782]
[1751188660720,0.001,2445.4,2445.3,24.14156782]
[1751188661022,0.001,2445.4,2445.3,33.95356782]
[1751188663607,0.001,2445.4,2445.3,27.37356782]
[1751188663921,0.001,2445.4,2445.3,34.85136782]
[1751188665114,0.001,2445.4,2445.3,35.62846782]
[1751188667395,0.001,2445.4,2445.3,27.37246782]
[1751188667749,0.001,2445.4,2445.3,35.62746782]
[1751188668237,0.001,2445.4,2445.3,26.59536782]
[1751188668700,0.001,2445.4,2445.3,34.85036782]
[1751188671015,0.001,2445.4,2445.3,26.59536782]
[1751188671274,0.001,2445.4,2445.3,34.84936782]
[1751188672877,0.001,2445.4,2445.3,35.62256782]
[1751188678296,0.001,2445.4,2445.3,34.84936782]
[1751188690302,0.001,2445.4,2445.3,35.63296782]
[1751188692074,0.001,2445.4,2445.3,34.84936782]
[1751188705677,0.001,2445.4,2445.3,35.64446782]
[1751188707545,0.001,2445.4,2445.3,40.29446782]
[1751188710627,0.001,2445.4,2445.3,44.60046782]
[1751188710836,0.001,2445.4,2445.3,40.29446782]
[1751188714647,0.7609,2446.6,2446.3,14.63780607]
[1751188714854,0.7609,2446.6,2446.3,24.76038065]
[1751188715939,0.06024782,2447.0,2446.3,24.76038065]
[1751188715940,0.7619,2446.4,2446.3,22.88780607]
[1751188716248,0.7619,2446.4,2446.3,14.63780607]
[1751188716447,0.7619,2446.4,2446.3,22.88780607]
[1751188720123,0.001,2446.4,2446.3,22.88780607]
[1751188722767,0.001,2446.4,2446.3,22.88580607]
[1751188722946,0.001,2446.4,2446.3,25.66401065]
[1751188723470,0.06024782,2447.0,2446.9,4.63680371]
[1751188723626,0.06024782,2447.0,2446.9,22.88480371]
[1751188723823,0.06024782,2447.0,2446.9,22.89080371]
[1751188724035,0.06024782,2447.0,2446.9,17.334578]
[1751188724336,0.06024782,2447.0,2446.9,25.588578]
[1751188724653,0.06024782,2447.0,2446.9,25.792578]
[1751188725156,0.84274782,2447.0,2446.9,16.988578]
[1751188725346,0.84274782,2447.0,2446.9,25.242578]
[1751188725855,0.06024782,2447.0,2446.9,25.792578]
[1751188727443,0.87524782,2447.0,2446.9,14.84080371]
[1751188727629,0.87524782,2447.0,2446.9,22.54980371]
[1751188727829,0.87524782,2447.0,2446.9,18.464]
[1751188728064,0.87524782,2447.0,2446.9,10.204]
[1751188728237,0.87524782,2447.0,2446.9,18.464]
[1751188729464,0.87524782,2447.0,2446.9,22.55080371]
[1751188732268,0.87524782,2447.0,2446.9,23.10080371]
[1751188737672,0.87524782,2447.0,2446.9,14.84080371]
[1751188737869,0.87524782,2447.0,2446.9,23.09780371]
[1751188741094,0.87524782,2447.0,2446.9,23.10080371]
[1751188748692,0.06024782,2447.0,2446.9,23.10080371]
[1751188750671,0.06024782,2447.0,2446.9,25.36176598]
[1751188758210,0.06024782,2447.0,2446.9,23.10080371]
[1751188768517,0.06024782,2447.0,2446.9,23.89910371]
[1751188774529,0.06024782,2447.0,2446.9,28.54910371]
[1751188778652,0.06024782,2447.0,2446.9,23.89910371]
[1751188779750,0.06024782,2447.0,2446.9,23.09380371]
[1751188779938,0.06024782,2447.0,2446.9,26.35944759]
[1751188780852,0.06024782,2447.0,2446.9,12.53880371]
[1751188781150,0.06024782,2447.0,2446.9,22.53880371]
[1751188781850,0.06024782,2447.0,2446.9,23.08880371]
[1751188785154,0.06024782,2447.0,2446.9,14.84080371]
[1751188785365,0.06024782,2447.0,2446.9,21.41380371]
[1751188785565,0.06024782,2447.0,2446.9,10.754]
[1751188785745,0.06024782,2447.0,2446.9,0.204]
[1751188785947,0.86264782,2447.0,2446.9,6.777]
[1751188786151,1.35756,2447.0,2446.9,6.573]
[1751188787029,1.35756,2447.0,2446.9,6.575]
[1751188788186,1.35756,2447.0,2446.8,1.674]
[1751188788377,1.56156,2447.0,2446.9,6.574]
[1751188789235,1.06664782,2447.0,2446.9,6.574]
[1751188791369,5.153302,2447.0,2446.8,1.674]
[1751188791681,4.90498154,2446.9,2446.6,0.204]
[1751188791834,0.204,2446.8,2446.6,6.575]
[1751188792434,4.29098746,2446.8,2446.6,6.575]
[1751188792659,0.8209,2446.7,2446.6,6.575]
[1751188796078,0.204,2446.8,2446.6,10.66230483]
[1751188796374,0.8209,2446.9,2446.8,4.08697073]
[1751188796550,0.8209,2446.9,2446.7,4.08698056]
[1751188798889,0.8209,2446.9,2446.8,6.577]
[1751188801779,0.8209,2446.9,2446.6,4.0872239]
[1751188801984,0.8209,2446.9,2446.7,6.575]
[1751188802191,0.8209,2446.9,2446.8,4.08697073]
[1751188802556,0.8209,2446.9,2446.7,10.66205412]
[1751188803064,0.06024782,2447.0,2446.8,4.08697073]
[1751188803462,0.06024782,2447.0,2446.9,4.08680371]
[1751188804383,0.06024782,2447.0,2446.8,4.29087935]
[1751188806296,0.81024782,2447.0,2446.8,0.204]
[1751188808002,0.81024782,2447.0,2446.8,4.29096493]
[1751188808302,0.81024782,2447.0,2446.8,0.204]
[1751188808698,4.89695448,2447.0,2446.8,6.575]
[1751188808879,5.38661121,2447.0,2446.8,6.576]
[1751188809619,5.38661121,2447.0,2446.5,4.08736033]
[1751188809620,0.78,2446.9,2446.3,1.674]
[1751188809771,4.29097073,2446.8,2446.4,0.204]
[1751188809971,4.86722168,2446.7,2446.4,6.577]
[1751188810286,5.07122168,2446.7,2446.4,6.577]
[1751188810601,0.78,2446.5,2446.4,6.577]
[1751188810801,4.86747622,2446.5,2446.1,11.479]
[1751188811099,0.984,2446.5,2446.2,6.577]
[1751188811809,0.984,2446.5,2446.3,4.08779897]
[1751188811810,0.204,2446.5,2446.3,4.08779897]
[1751188812007,0.78,2446.7,2446.2,7.3858]
[1751188812205,0.984,2446.7,2446.3,4.29172164]
[1751188812387,0.984,2446.7,2446.4,6.578]
[1751188813086,0.204,2446.7,2446.4,10.66563613]
[1751188815310,0.204,2446.7,2446.4,6.578]
[1751188815512,0.204,2446.7,2446.4,10.66559874]
[1751188816620,0.204,2446.7,2446.4,6.578]
[1751188816802,0.204,2446.7,2446.5,4.08747079]
[1751188816984,0.78,2446.9,2446.5,4.29147079]
[1751188818417,4.86682727,2446.9,2446.5,4.29147079]
[1751188818785,4.86682727,2446.9,2446.5,0.204]
[1751188818983,4.08697774,2446.8,2446.5,0.204]
[1751188819205,4.08697774,2446.8,2446.5,6.783]
[1751188821819,4.86688116,2446.9,2446.5,6.783]
[1751188822006,5.78865962,2446.9,2446.5,6.783]
[1751188822197,4.08697443,2446.8,2446.5,6.783]
[1751188825188,5.78865947,2446.9,2446.5,6.783]
[1751188825682,1.70177846,2446.9,2446.5,10.87040654]
[1751188825985,0.78,2446.9,2446.5,10.87040654]
[1751188827037,4.86682567,2446.9,2446.5,10.87040654]
[1751188827204,0.78,2446.9,2446.5,11.66940654]
[1751188827404,4.35098048,2447.0,2446.5,11.66940654]
[1751188828605,4.08681745,2446.9,2446.5,11.66940654]
[1751188828805,0.92591102,2446.9,2446.5,11.66940654]
[1751188829104,5.01276252,2446.9,2446.5,7.582]
[1751188829705,0.8215,2446.8,2446.5,6.78]
[1751188830222,0.8215,2446.8,2446.5,0.204]
[1751188831040,4.90848245,2446.8,2446.5,0.204]
[1751188834351,5.92702925,2446.8,2446.5,0.204]
[1751188835540,1.8400468,2446.8,2446.5,0.204]
[1751188835746,0.8215,2446.8,2446.5,0.204]
[1751188836555,4.90847442,2446.8,2446.5,0.204]
[1751188841740,4.08726217,2446.7,2446.5,0.204]
[1751188841942,0.204,2446.6,2446.3,8.251]
[1751188842154,0.204,2446.6,2446.3,12.33879746]
[1751188843862,0.204,2446.6,2446.3,8.251]
[1751188844052,0.204,2446.6,2446.3,12.33874833]
[1751188844964,0.204,2446.6,2446.3,8.251]
[1751188846559,1.12396251,2446.6,2446.3,1.675]
[1751188846866,4.08747189,2446.5,2446.4,6.576]
[1751188847757,4.08763897,2446.4,2446.3,1.675]
[1751188848069,4.08763897,2446.4,2446.3,8.251]
[1751188848230,4.08754875,2446.5,2446.3,8.251]
[1751188848659,5.99346596,2446.6,2446.2,0.204]
[1751188848884,5.99346596,2446.6,2446.3,6.576]
[1751188849086,4.08749517,2446.5,2446.3,6.576]
[1751188850470,5.99345431,2446.6,2446.3,6.576]
[1751188851693,4.08765553,2446.4,2446.3,6.576]
[1751188851888,4.08765553,2446.4,2446.0,1.677]
[1751188852081,4.29165553,2446.4,2446.2,6.576]
[1751188856495,4.29165553,2446.4,2446.0,10.0]
[1751188856686,4.29165553,2446.4,2446.2,6.576]
[1751188857593,0.8092,2446.3,2445.9,1.0169]
[1751188857794,4.08811957,2446.2,2445.9,0.204]
[1751188857958,4.29211957,2446.2,2446.0,6.576]
[1751188858156,0.204,2446.2,2446.0,6.576]
[1751188858361,0.204,2446.2,2445.8,1.677]
[1751188858677,4.29203671,2446.2,2445.9,6.576]
[1751188859800,4.29203671,2446.2,2445.8,1.677]
[1751188860003,5.007031,2446.2,2445.8,1.677]
[1751188860303,4.29225108,2446.1,2445.8,1.677]
[1751188863006,4.08833555,2446.0,2445.8,1.677]
[1751188863211,4.08830744,2446.0,2445.8,1.677]
[1751188863389,4.72170533,2445.9,2445.8,1.677]
[1751188863574,4.72170533,2445.9,2445.7,6.576]
[1751188865718,0.63323074,2445.9,2445.7,6.576]
[1751188865881,0.204,2445.9,2445.7,6.576]
[1751188867223,0.204,2445.9,2445.7,6.577]
[1751188871738,0.204,2445.9,2445.7,10.66579715]
[1751188871936,0.204,2445.9,2445.7,6.577]
[1751188873343,0.7812,2445.9,2445.4,10.66828114]
[1751188873514,0.204,2445.7,2445.5,4.08903448]
[1751188873717,0.204,2445.7,2445.5,0.7884]
[1751188880843,0.204,2445.9,2445.6,4.08896058]
[1751188881339,0.204,2445.9,2445.7,6.578]
[1751188881745,5.00694955,2446.2,2445.7,10.6667308]
[1751188882046,5.00694955,2446.2,2445.8,0.7645]
[1751188882047,0.204,2446.1,2445.8,0.7645]
[1751188884817,0.204,2446.1,2445.8,4.85313805]
[1751188885142,0.204,2446.1,2445.8,0.7645]
[1751188885343,0.204,2446.2,2445.9,4.08835191]
[1751188885544,0.204,2446.2,2445.8,5.05708007]
[1751188886348,0.204,2446.2,2445.9,4.08846703]
[1751188886555,0.204,2446.2,2445.8,5.05705699]
[1751188889151,0.204,2446.2,2445.9,4.08845575]
[1751188889958,0.204,2446.2,2445.8,0.9685]
[1751188890256,4.29172843,2446.4,2445.9,0.204]
[1751188890431,4.29172843,2446.4,2446.0,6.577]
[1751188890756,4.29172843,2446.4,2446.0,10.66529319]
[1751188890946,2.9,2446.2,2446.0,10.66529319]
[1751188891147,2.9,2446.2,2446.0,6.577]
[1751188891748,2.9,2446.2,2446.0,10.66528746]
[1751188891945,0.204,2446.4,2446.0,10.66528746]
[1751188892263,4.29166183,2446.4,2446.0,10.66528746]
[1751188892559,0.204,2446.4,2446.1,4.8401592]
[1751188892746,4.08718988,2446.7,2446.2,4.08788661]
[1751188893064,0.204,2446.5,2446.1,5.04418981]
[1751188893737,0.204,2446.5,2446.2,4.08796821]
[1751188894562,0.204,2446.5,2446.3,10.67073497]
[1751188894745,4.08704097,2446.8,2446.3,10.67069771]
[1751188894942,0.204,2446.7,2446.3,10.67069771]
[1751188895326,0.204,2446.7,2446.4,4.08763522]
[1751188896149,2.8,2446.5,2446.3,10.6707638]
[1751188898962,0.204,2446.7,2446.3,10.6707638]
[1751188901872,0.204,2446.7,2446.4,4.08762239]
[1751188902250,0.204,2446.7,2446.4,4.87922239]
[1751188903149,5.05725929,2446.9,2446.4,5.08322239]
[1751188903544,0.9704,2446.9,2446.5,4.08747189]
[1751188903779,0.9704,2446.9,2446.6,6.58]
[1751188903958,5.05721219,2446.9,2446.6,6.58]
[1751188904158,5.97760624,2446.9,2446.6,6.58]
[1751188904664,4.08699398,2446.8,2446.6,6.58]
[1751188905382,4.08713777,2446.7,2446.6,6.58]
[1751188905782,4.08705476,2446.8,2446.6,6.58]
[1751188906682,4.08713777,2446.7,2446.6,6.58]
[1751188906990,0.204,2446.9,2446.6,7.3716]
[1751188908351,0.204,2446.9,2446.6,11.45889226]
[1751188909083,0.204,2446.9,2446.6,7.3716]
[1751188909991,0.204,2446.9,2446.6,11.45889614]
[1751188910690,0.204,2446.9,2446.6,7.3716]
[1751188910889,4.29081796,2446.9,2446.6,7.3716]
[1751188911094,4.29081796,2446.9,2446.6,6.58]
[1751188911491,0.204,2446.9,2446.6,6.58]
[1751188911894,4.2908222,2446.9,2446.6,6.58]
[1751188914694,0.204,2446.9,2446.6,6.58]
[1751188914995,4.29080952,2446.9,2446.6,6.58]
[1751188915595,5.21147865,2446.9,2446.6,6.58]
[1751188918100,4.08697073,2446.8,2446.6,6.58]
[1751188919198,4.08713777,2446.7,2446.6,6.58]
[1751188920212,4.08733722,2446.6,2446.4,6.578]
[1751188920368,4.08733722,2446.6,2446.3,6.578]
[1751188921194,1.0314,2446.7,2446.2,0.204]
[1751188921195,4.08755175,2446.5,2446.2,0.204]
[1751188921619,4.29180607,2446.3,2445.9,6.579]
[1751188924098,4.29180607,2446.3,2445.9,10.0]
[1751188924310,4.29180607,2446.3,2445.9,16.578]
[1751188925016,4.08799634,2446.2,2445.9,16.578]
[1751188925216,4.08799634,2446.2,2445.7,1.675]
[1751188925217,4.08833248,2446.0,2445.7,1.675]
[1751188925603,4.08833248,2446.0,2445.8,6.579]
[1751188926424,5.12133157,2446.1,2445.8,6.579]
[1751188926630,4.08832116,2446.0,2445.8,6.579]
[1751188926937,4.08832116,2446.0,2445.6,4.2929726]
[1751188926938,4.08859498,2445.9,2445.6,6.58]
[1751188927112,0.204,2445.8,2445.6,6.58]
[1751188927625,0.204,2445.8,2445.4,6.57160244]
[1751188927929,0.204,2445.8,2445.5,6.58]
[1751188928335,0.204,2445.8,2445.5,10.66909043]
[1751188928533,0.204,2445.8,2445.6,4.08892658]
[1751188930114,4.91732899,2446.1,2445.6,4.08892658]
[1751188930412,0.204,2446.0,2445.6,4.08892658]
[1751188930602,0.204,2446.0,2445.7,4.84104178]
[1751188931000,0.204,2446.0,2445.7,0.7524]
[1751188933243,0.204,2446.0,2445.7,4.84119383]
[1751188933838,0.204,2446.0,2445.8,4.08858509]
[1751188934045,0.8225,2446.3,2445.8,4.08858509]
[1751188934046,4.9103793,2446.3,2445.8,4.08858509]
[1751188934254,0.204,2446.2,2445.8,4.08858509]
[1751188934455,0.204,2446.2,2445.8,10.66858509]
[1751188934952,4.29202033,2446.2,2445.8,6.58]
[1751188935528,4.29202033,2446.2,2445.8,10.66862696]
[1751188935956,0.204,2446.2,2445.8,10.66862696]
[1751188938437,4.29198514,2446.2,2445.8,10.66862696]
[1751188938667,4.08817518,2446.1,2445.8,6.58]
[1751188940850,5.00843003,2446.1,2445.7,0.204]
[1751188941062,5.00843003,2446.1,2445.7,6.784]
[1751188941561,4.29200713,2446.2,2445.7,6.784]